fUST/lending_fUST_20250210
["ID","MTS","AMOUNT","RATE_DAILY","PERIOD"]
[352603110,1739191845644,-537.5,0.00012465,2]
[352603111,1739191845654,-613.11,0.00012465,2]
[352603112,1739191845663,-1244.72,0.00012465,2]
[352603113,1739191845672,-5316.7,0.00012465,2]
[352603114,1739191845681,-572.68,0.00012465,2]
[352603115,1739191845691,-586.14,0.00012465,2]
[352603116,1739191845700,-225.53813587,0.00012465,2]
[352603117,1739191845709,-500.0,0.00012465,2]
[352603118,1739191845719,-517.39,0.00012465,2]
[352603119,1739191845728,-500.0,0.00012465,2]
[352603120,1739191845738,-885.43,0.00012465,2]
[352603121,1739191845749,-968.45770084,0.000125,2]
[352603122,1739191845759,-151.0,0.000126,2]
[352603123,1739191845769,-423.539,0.00012602,2]
[352603124,1739191845778,-681.41,0.00012602,2]
[352603125,1739191845788,-500.0,0.00012602,2]
[352603126,1739191845799,-500.0,0.00012602,2]
[352603127,1739191845809,-500.0,0.00012602,2]
[352603128,1739191845818,-500.0,0.00012602,2]
[352603129,1739191845827,-500.0,0.00012602,2]
[352603130,1739191845837,-500.0,0.00012602,2]
[352603131,1739191845846,-1350.43,0.00012602,2]
[352603132,1739191845855,-500.0,0.00012602,2]
[352603133,1739191845865,-1037.03,0.00012602,2]
[352603134,1739191845875,-1405.75,0.00012602,2]
[352603135,1739191845885,-2098.13,0.00012602,2]
[352603136,1739191845896,-500.0,0.00012602,2]
[352603137,1739191845905,-500.0,0.00012602,2]
[352603138,1739191845915,-4626.67,0.00012602,2]
[352603139,1739191845924,-1098.09,0.00012602,2]
[352603140,1739191845934,-491.08,0.00012602,2]
[352603141,1739191845943,-612.03,0.00012602,2]
[352603142,1739191845952,-500.0,0.00012602,2]
[352603143,1739191845962,-1127.59,0.00012602,2]
[352603144,1739191845972,-12512.19,0.00012602,2]
[352603145,1739191845981,-518.28,0.00012602,2]
[352603146,1739191845991,-998.05,0.00012602,2]
[352603148,1739191846001,-1065.08,0.00012602,2]
[352603149,1739191846010,-607.68,0.00012602,2]
[352603150,1739191846019,-500.0,0.00012602,2]
[352603151,1739191846029,-550.58251806,0.00012602,2]
[352603152,1739191846043,-653.5073582,0.00012602,2]
[352603153,1739191846060,-538.47719985,0.00012602,2]
[352603157,1739191846101,-495.78292389,0.00012602,2]
[352603159,1739191846111,-500.0,0.00012602,2]
[352603161,1739191846120,-269.23,0.00012602,2]
[352603163,1739191846131,-537.5,0.00012602,2]
[352603165,1739191846140,-613.11,0.00012602,2]
[352603167,1739191846150,-5316.7,0.00012602,2]
[352603170,1739191846160,-572.68,0.00012602,2]
[352603173,1739191846171,-193.94668271,0.00012602,2]
[352603211,1739191846738,-500.0,0.00010958,2]
[352603212,1739191846747,-373.82360649,0.00011095,2]
[352603213,1739191846759,-126.17639351,0.00011095,2]
[352603214,1739191846769,-392.19331729,0.00012602,2]
[352603215,1739191846779,-500.0,0.00012602,2]
[352603216,1739191846788,-517.39,0.00012602,2]
[352603217,1739191846799,-472.4402892,0.00012602,2]
[352603218,1739191846811,-27.5597108,0.00012602,2]
[352603219,1739191846820,-885.43,0.00012602,2]
[352603220,1739191846830,-185.4385548,0.00012608,2]
[352603221,1739191846839,-681.41,0.00012739,2]
[352603222,1739191846849,-97.41274724,0.00012739,2]
[352603225,1739192807124,-176.44026546,9.994e-05,2]
[352603226,1739192850097,-284.07569116,9.995e-05,2]
[352603227,1739192850119,-695.1323495,0.00010095,2]
[352603228,1739192850140,-400.0,0.00010685,2]
[352603229,1739192850161,-871.28063999,0.00010858,2]
[352603230,1739192850182,-5706.42395067,0.00010928,2]
[352603231,1739192854097,-1732.27358211,0.00010928,2]
[352603232,1739192854124,-300.0,0.00010957,2]
[352603233,1739192854148,-500.0,0.00010958,2]
[352603234,1739192854170,-500.0,0.00010958,2]
[352603235,1739192854192,-501.79114185,0.00010958,2]
[352603236,1739192854217,-500.0,0.00010958,2]
[352603237,1739192854239,-480.71573263,0.00010958,2]
[352603238,1739192854262,-82.36900057,0.00010958,2]
[352603243,1739192946152,-4141.48567098,9.894e-05,2]
[352603244,1739192948132,-85.56160429,9.894e-05,2]
[352603245,1739192948155,-348.72276849,0.00010276,2]
[352603276,1739193032964,-12.84028961,0.00010276,2]
[352603277,1739193032973,-7438.69753278,0.00010956,2]
[352603278,1739193032983,-300.0,0.00010957,2]
[352603279,1739193032992,-500.0,0.00010958,2]
[352603280,1739193033001,-500.0,0.00010958,2]
[352603281,1739193033011,-500.0,0.00010958,2]
[352603282,1739193033020,-500.0,0.00010958,2]
[352603283,1739193033030,-500.0,0.00010958,2]
[352603284,1739193033039,-500.0,0.00010958,2]
[352603285,1739193033049,-257.19975147,0.00010958,2]
[352603369,1739193038649,-250.26801938,0.00010957,2]
[352603372,1739193038659,-500.0,0.00010957,2]
[352603375,1739193038668,-387.51023264,0.00010957,2]
[352603377,1739193038678,-242.80024853,0.00010958,2]
[352603393,1739193038808,-500.0,0.00010958,2]
[352603394,1739193038818,-500.0,0.00010958,2]
[352603395,1739193038829,-500.0,0.00010958,2]
[352603396,1739193038838,-500.0,0.00010958,2]
[352603397,1739193038848,-500.0,0.00010958,2]
[352603398,1739193038858,-500.0,0.00010958,2]
[352603399,1739193038869,-568.61,0.00010958,2]
[352603400,1739193038877,-500.0,0.00010958,2]
[352603401,1739193038886,-500.0,0.00010958,2]
[352603402,1739193038896,-504.04,0.00010958,2]
[352603403,1739193038906,-500.0,0.00010958,2]
[352603404,1739193038916,-500.0,0.00010958,2]
[352603405,1739193038926,-500.0,0.00010958,2]
[352603406,1739193038936,-500.0,0.00010958,2]
[352603407,1739193038946,-500.0,0.00010958,2]
[352603408,1739193038955,-500.0,0.00010958,2]
[352603409,1739193038965,-500.0,0.00010958,2]
[352603410,1739193038974,-500.0,0.00010958,2]
[352603411,1739193038984,-500.0,0.00010958,2]
[352603412,1739193038994,-500.0,0.00010958,2]
[352603413,1739193039003,-500.0,0.00010958,2]
[352603414,1739193039013,-500.0,0.00010958,2]
[352603415,1739193039023,-407.53181172,0.00010958,2]
[352603416,1739193039032,-500.0,0.00010958,2]
[352603417,1739193039042,-500.0,0.00010958,2]
[352603418,1739193039051,-500.0,0.00010958,2]
[352603419,1739193039060,-500.0,0.00010958,2]
[352603420,1739193039070,-500.0,0.00010958,2]
[352603421,1739193039080,-500.0,0.00010958,2]
[352603422,1739193039089,-500.0,0.00010958,2]
[352603423,1739193039099,-500.0,0.00010958,2]
[352603424,1739193039108,-500.0,0.00010958,2]
[352603425,1739193039121,-500.0,0.00010958,2]
[352603426,1739193039131,-500.0,0.00010958,2]
[352603427,1739193039140,-500.0,0.00010958,2]
[352603428,1739193039150,-500.0,0.00010958,2]
[352603429,1739193039160,-500.0,0.00010958,2]
[352603430,1739193039170,-500.0,0.00010958,2]
[352603431,1739193039180,-500.0,0.00010958,2]
[352603432,1739193039190,-500.0,0.00010958,2]
[352603433,1739193039199,-500.0,0.00010958,2]
[352603434,1739193039209,-500.0,0.00010958,2]
[352603435,1739193039218,-500.0,0.00010958,2]
[352603436,1739193039228,-500.0,0.00010958,2]
[352603437,1739193039239,-500.0,0.00010958,2]
[352603438,1739193039249,-500.0,0.00010958,2]
[352603439,1739193039259,-594.45,0.00010958,2]
[352603440,1739193039268,-500.0,0.00010958,2]
[352603441,1739193039278,-500.0,0.00010958,2]
[352603442,1739193039288,-500.0,0.00010958,2]
[352603443,1739193039297,-500.0,0.00010958,2]
[352603444,1739193039307,-156.18684885,0.00010958,2]
[352603445,1739193039316,-500.0,0.00010958,2]
[352603446,1739193039326,-500.0,0.00010958,2]
[352603447,1739193039336,-500.0,0.00010958,2]
[352603448,1739193039346,-1386.89,0.00010958,2]
[352603449,1739193039356,-500.0,0.00010958,2]
[352603450,1739193039366,-500.0,0.00010958,2]
[352603451,1739193039375,-1290.71,0.00010958,2]
[352603452,1739193039385,-500.0,0.00010958,2]
[352603453,1739193039395,-2137.44,0.00010958,2]
[352603454,1739193039404,-500.0,0.00010958,2]
[352603455,1739193039414,-500.0,0.00010958,2]
[352603456,1739193039424,-1023.38,0.00010958,2]
[352603457,1739193039433,-500.0,0.00010958,2]
[352603458,1739193039443,-1054.8,0.00010958,2]
[352603459,1739193039453,-500.0,0.00010958,2]
[352603460,1739193039463,-500.0,0.00010958,2]
[352603461,1739193039472,-500.0,0.00010958,2]
[352603462,1739193039482,-500.0,0.00010958,2]
[352603463,1739193039492,-500.0,0.00010958,2]
[352603464,1739193039502,-564.01,0.00010958,2]
[352603465,1739193039511,-500.0,0.00010958,2]
[352603466,1739193039521,-13067.2,0.00010958,2]
[352603467,1739193039530,-500.0,0.00010958,2]
[352603468,1739193039540,-1040.35,0.00010958,2]
[352603469,1739193039549,-500.0,0.00010958,2]
[352603470,1739193039562,-648.58,0.00010958,2]
[352603471,1739193039572,-5282.16,0.00010958,2]
[352603472,1739193039582,-500.0,0.00010958,2]
[352603473,1739193039592,-314.07854037,0.00010958,2]
[352603474,1739193039602,-500.0,0.00010958,2]
[352603475,1739193039611,-500.0,0.00010958,2]
[352603476,1739193039623,-500.0,0.00010958,2]
[352603477,1739193039633,-500.0,0.00010958,2]
[352603478,1739193039643,-527.53,0.00010958,2]
[352603479,1739193039652,-500.0,0.00010958,2]
[352603480,1739193039662,-690.8,0.00010958,2]
[352603481,1739193039671,-500.0,0.00010958,2]
[352603482,1739193039681,-500.0,0.00010958,2]
[352603483,1739193039690,-500.0,0.00010958,2]
[352603484,1739193039700,-500.0,0.00010958,2]
[352603485,1739193039709,-1150.11,0.00010958,2]
[352603486,1739193039719,-666.05,0.00010958,2]
[352603487,1739193039729,-500.0,0.00010958,2]
[352603488,1739193039739,-575.58,0.00010958,2]
[352603489,1739193039748,-500.0,0.00010958,2]
[352603490,1739193039758,-1218.71,0.00010958,2]
[352603491,1739193039768,-500.0,0.00010958,2]
[352603492,1739193039777,-753.11,0.00010958,2]
[352603493,1739193039793,-2548.85,0.00010958,2]
[352603494,1739193039802,-500.0,0.00010958,2]
[352603495,1739193039812,-500.0,0.00010958,2]
[352603496,1739193039822,-698.98,0.00010958,2]
[352603497,1739193039832,-500.0,0.00010958,2]
[352603498,1739193039842,-876.23,0.00010958,2]
[352603499,1739193039851,-500.0,0.00010958,2]
[352603500,1739193039862,-500.0,0.00010958,2]
[352603501,1739193039872,-500.0,0.00010958,2]
[352603502,1739193039881,-6818.49,0.00010958,2]
[352603503,1739193039891,-500.0,0.00010958,2]
[352603504,1739193039901,-1440.55,0.00010958,2]
[352603505,1739193039911,-500.0,0.00010958,2]
[352603506,1739193039921,-500.0,0.00010958,2]
[352603507,1739193039931,-500.0,0.00010958,2]
[352603508,1739193039941,-274.0,0.0001109,2]
[352603509,1739193039950,-500.0,0.00011095,2]
[352603510,1739193039960,-500.0,0.00011095,2]
[352603511,1739193039969,-500.0,0.00011095,2]
[352603512,1739193039979,-500.0,0.00011095,2]
[352603513,1739193039988,-500.0,0.00011095,2]
[352603514,1739193039998,-568.61,0.00011095,2]
[352603515,1739193040007,-500.0,0.00011095,2]
[352603516,1739193040016,-500.0,0.00011095,2]
[352603517,1739193040026,-500.0,0.00011095,2]
[352603519,1739193040035,-282.4,0.00011095,2]
[352603521,1739193040046,-500.0,0.00011095,2]
[352603522,1739193040055,-500.0,0.00011095,2]
[352603523,1739193040065,-505.75463293,0.00011095,2]
[352603524,1739193040074,-500.0,0.00011095,2]
[352603525,1739193040085,-500.0,0.00011095,2]
[352603527,1739193040095,-500.0,0.00011095,2]
[352603528,1739193040105,-500.0,0.00011095,2]
[352603529,1739193040115,-500.0,0.00011095,2]
[352603530,1739193040124,-500.0,0.00011095,2]
[352603531,1739193040135,-500.0,0.00011095,2]
[352603532,1739193040144,-500.0,0.00011095,2]
[352603533,1739193040154,-500.0,0.00011095,2]
[352603534,1739193040163,-500.0,0.00011095,2]
[352603535,1739193040172,-500.0,0.00011095,2]
[352603536,1739193040182,-500.0,0.00011095,2]
[352603537,1739193040191,-500.0,0.00011095,2]
[352603538,1739193040200,-624.31537494,0.00011095,2]
[352603539,1739193040210,-500.0,0.00011095,2]
[352603540,1739193040220,-500.0,0.00011095,2]
[352603541,1739193040230,-500.0,0.00011095,2]
[352603542,1739193040240,-500.0,0.00011095,2]
[352603543,1739193040249,-500.0,0.00011095,2]
[352603544,1739193040259,-500.0,0.00011095,2]
[352603545,1739193040268,-594.45,0.00011095,2]
[352603546,1739193040278,-500.0,0.00011095,2]
[352603547,1739193040287,-500.0,0.00011095,2]
[352603549,1739193040297,-500.0,0.00011095,2]
[352603550,1739193040306,-500.0,0.00011095,2]
[352603551,1739193040316,-500.0,0.00011095,2]
[352603553,1739193040326,-1386.89,0.00011095,2]
[352603554,1739193040335,-500.0,0.00011095,2]
[352603556,1739193040345,-500.0,0.00011095,2]
[352603557,1739193040355,-1290.71,0.00011095,2]
[352603558,1739193040366,-500.0,0.00011095,2]
[352603559,1739193040376,-2137.44,0.00011095,2]
[352603561,1739193040385,-500.0,0.00011095,2]
[352603563,1739193040395,-1023.38,0.00011095,2]
[352603565,1739193040405,-1054.8,0.00011095,2]
[352603566,1739193040415,-500.0,0.00011095,2]
[352603567,1739193040425,-500.0,0.00011095,2]
[352603568,1739193040435,-500.0,0.00011095,2]
[352603569,1739193040444,-500.0,0.00011095,2]
[352603570,1739193040453,-564.01,0.00011095,2]
[352603571,1739193040462,-500.0,0.00011095,2]
[352603572,1739193040472,-13067.2,0.00011095,2]
[352603573,1739193040482,-500.0,0.00011095,2]
[352603574,1739193040491,-1040.35,0.00011095,2]
[352603577,1739193040501,-500.0,0.00011095,2]
[352603578,1739193040510,-648.58,0.00011095,2]
[352603580,1739193040519,-5282.16,0.00011095,2]
[352603581,1739193040529,-500.0,0.00011095,2]
[352603582,1739193040538,-500.0,0.00011095,2]
[352603583,1739193040547,-500.0,0.00011095,2]
[352603584,1739193040557,-500.0,0.00011095,2]
[352603585,1739193040569,-527.53,0.00011095,2]
[352603586,1739193040579,-690.8,0.00011095,2]
[352603587,1739193040589,-492.82,0.00011095,2]
[352603588,1739193040599,-500.0,0.00011095,2]
[352603589,1739193040608,-500.0,0.00011095,2]
[352603590,1739193040618,-500.0,0.00011095,2]
[352603591,1739193040628,-1150.11,0.00011095,2]
[352603592,1739193040637,-666.05,0.00011095,2]
[352603593,1739193040647,-500.0,0.00011095,2]
[352603594,1739193040656,-575.58,0.00011095,2]
[352603595,1739193040665,-500.0,0.00011095,2]
[352603596,1739193040675,-1218.71,0.00011095,2]
[352603597,1739193040685,-502.71504357,0.00011095,2]
[352603598,1739193040694,-753.11,0.00011095,2]
[352603599,1739193040703,-2548.85,0.00011095,2]
[352603600,1739193040712,-500.0,0.00011095,2]
[352603601,1739193040722,-698.98,0.00011095,2]
[352603602,1739193040731,-876.23,0.00011095,2]
[352603603,1739193040740,-500.0,0.00011095,2]
[352603604,1739193040749,-500.0,0.00011095,2]
[352603605,1739193040759,-6818.49,0.00011095,2]
[352603606,1739193040768,-500.0,0.00011095,2]
[352603607,1739193040778,-1440.55,0.00011095,2]
[352603608,1739193040792,-500.0,0.00011095,2]
[352603609,1739193040801,-500.0,0.00011232,2]
[352603610,1739193040811,-500.0,0.00011232,2]
[352603611,1739193040820,-500.0,0.00011232,2]
[352603612,1739193040830,-500.0,0.00011232,2]
[352603613,1739193040839,-568.61,0.00011232,2]
[352603614,1739193040848,-500.0,0.00011232,2]
[352603615,1739193040857,-500.0,0.00011232,2]
[352603616,1739193040867,-500.0,0.00011232,2]
[352603617,1739193040876,-500.0,0.00011232,2]
[352603618,1739193040887,-500.0,0.00011232,2]
[352603619,1739193040897,-500.0,0.00011232,2]
[352603620,1739193040906,-500.0,0.00011232,2]
[352603621,1739193040916,-203.51,0.00011232,2]
[352603622,1739193040925,-500.0,0.00011232,2]
[352603623,1739193040934,-500.0,0.00011232,2]
[352603624,1739193040944,-500.0,0.00011232,2]
[352603625,1739193040953,-500.0,0.00011232,2]
[352603626,1739193040962,-500.0,0.00011232,2]
[352603627,1739193040972,-500.0,0.00011232,2]
[352603628,1739193040981,-618.56,0.00011232,2]
[352603629,1739193040990,-500.0,0.00011232,2]
[352603630,1739193040999,-500.0,0.00011232,2]
[352603631,1739193041009,-500.0,0.00011232,2]
[352603632,1739193041030,-500.0,0.00011232,2]
[352603633,1739193041039,-500.0,0.00011232,2]
[352603634,1739193041049,-500.0,0.00011232,2]
[352603635,1739193041059,-500.0,0.00011232,2]
[352603636,1739193041068,-646.69536164,0.00011232,2]
[352603637,1739193041077,-594.45,0.00011232,2]
[352603638,1739193041087,-500.0,0.00011232,2]
[352603639,1739193041097,-500.0,0.00011232,2]
[352603640,1739193041108,-500.0,0.00011232,2]
[352603641,1739193041118,-500.0,0.00011232,2]
[352603642,1739193041128,-624.47,0.00011232,2]
[352603643,1739193041138,-1386.89,0.00011232,2]
[352603644,1739193041148,-500.0,0.00011232,2]
[352603645,1739193041158,-1290.71,0.00011232,2]
[352603646,1739193041169,-500.0,0.00011232,2]
[352603647,1739193041178,-2137.44,0.00011232,2]
[352603648,1739193041188,-500.0,0.00011232,2]
[352603649,1739193041197,-1023.38,0.00011232,2]
[352603650,1739193041207,-1054.8,0.00011232,2]
[352603651,1739193041217,-500.0,0.00011232,2]
[352603652,1739193041226,-500.0,0.00011232,2]
[352603653,1739193041236,-500.0,0.00011232,2]
[352603654,1739193041245,-500.0,0.00011232,2]
[352603655,1739193041254,-564.01,0.00011232,2]
[352603656,1739193041264,-500.0,0.00011232,2]
[352603657,1739193041274,-13067.2,0.00011232,2]
[352603658,1739193041283,-500.0,0.00011232,2]
[352603659,1739193041293,-1040.35,0.00011232,2]
[352603660,1739193041302,-500.0,0.00011232,2]
[352603661,1739193041311,-648.58,0.00011232,2]
[352603662,1739193041320,-5282.16,0.00011232,2]
[352603663,1739193041330,-500.0,0.00011232,2]
[352603664,1739193041339,-500.0,0.00011232,2]
[352603665,1739193041348,-500.0,0.00011232,2]
[352603666,1739193041358,-500.0,0.00011232,2]
[352603667,1739193041367,-527.53,0.00011232,2]
[352603668,1739193041377,-690.8,0.00011232,2]
[352603669,1739193041386,-500.0,0.00011232,2]
[352603670,1739193041395,-500.0,0.00011232,2]
[352603671,1739193041405,-500.0,0.00011232,2]
[352603672,1739193041414,-1150.11,0.00011232,2]
[352603673,1739193041423,-666.05,0.00011232,2]
[352603674,1739193041433,-500.0,0.00011232,2]
[352603675,1739193041442,-575.58,0.00011232,2]
[352603676,1739193041451,-500.0,0.00011232,2]
[352603677,1739193041461,-1218.71,0.00011232,2]
[352603678,1739193041470,-753.11,0.00011232,2]
[352603679,1739193041479,-2548.85,0.00011232,2]
[352603680,1739193041488,-500.0,0.00011232,2]
[352603681,1739193041498,-698.98,0.00011232,2]
[352603682,1739193041507,-876.23,0.00011232,2]
[352603683,1739193041516,-500.0,0.00011232,2]
[352603684,1739193041527,-500.0,0.00011232,2]
[352603685,1739193041536,-6818.49,0.00011232,2]
[352603686,1739193041545,-500.0,0.00011232,2]
[352603687,1739193041554,-1440.55,0.00011232,2]
[352603688,1739193041564,-500.0,0.00011232,2]
[352603689,1739193041574,-500.0,0.00011369,2]
[352603690,1739193041584,-500.0,0.00011369,2]
[352603691,1739193041594,-500.0,0.00011369,2]
[352603692,1739193041603,-568.61,0.00011369,2]
[352603693,1739193041737,-500.0,0.00011369,2]
[352603694,1739193041747,-500.0,0.00011369,2]
[352603695,1739193041757,-500.0,0.00011369,2]
[352603696,1739193041766,-532.98444533,0.00011369,2]
[352603697,1739193041775,-500.0,0.00011369,2]
[352603698,1739193041786,-500.0,0.00011369,2]
[352603699,1739193041796,-500.0,0.00011369,2]
[352603700,1739193041807,-500.0,0.00011369,2]
[352603701,1739193041816,-500.0,0.00011369,2]
[352603702,1739193041826,-500.0,0.00011369,2]
[352603703,1739193041835,-500.0,0.00011369,2]
[352603704,1739193041844,-484.84558653,0.00011369,2]
[352603705,1739193041855,-500.0,0.00011369,2]
[352603706,1739193041866,-500.0,0.00011369,2]
[352603707,1739193041875,-500.0,0.00011369,2]
[352603708,1739193041884,-500.0,0.00011369,2]
[352603709,1739193041894,-500.0,0.00011369,2]
[352603710,1739193041903,-500.0,0.00011369,2]
[352603711,1739193041913,-500.0,0.00011369,2]
[352603712,1739193041922,-500.0,0.00011369,2]
[352603713,1739193041931,-594.45,0.00011369,2]
[352603714,1739193041942,-500.0,0.00011369,2]
[352603715,1739193041951,-500.0,0.00011369,2]
[352603716,1739193041961,-500.0,0.00011369,2]
[352603717,1739193041970,-500.0,0.00011369,2]
[352603718,1739193041979,-1386.89,0.00011369,2]
[352603719,1739193041988,-500.0,0.00011369,2]
[352603720,1739193041997,-1290.71,0.00011369,2]
[352603721,1739193042006,-500.0,0.00011369,2]
[352603722,1739193042016,-2137.44,0.00011369,2]
[352603723,1739193042026,-500.0,0.00011369,2]
[352603724,1739193042036,-1023.38,0.00011369,2]
[352603725,1739193042045,-1054.8,0.00011369,2]
[352603726,1739193042054,-500.0,0.00011369,2]
[352603727,1739193042063,-500.0,0.00011369,2]
[352603728,1739193042072,-500.0,0.00011369,2]
[352603729,1739193042082,-500.0,0.00011369,2]
[352603730,1739193042091,-564.01,0.00011369,2]
[352603731,1739193042101,-500.0,0.00011369,2]
[352603732,1739193042111,-13067.2,0.00011369,2]
[352603733,1739193042121,-500.0,0.00011369,2]
[352603734,1739193042132,-1040.35,0.00011369,2]
[352603735,1739193042142,-500.0,0.00011369,2]
[352603736,1739193042151,-648.58,0.00011369,2]
[352603737,1739193042161,-5282.16,0.00011369,2]
[352603738,1739193042170,-500.0,0.00011369,2]
[352603739,1739193042179,-500.0,0.00011369,2]
[352603740,1739193042189,-500.0,0.00011369,2]
[352603741,1739193042199,-500.0,0.00011369,2]
[352603742,1739193042209,-527.53,0.00011369,2]
[352603743,1739193042219,-690.8,0.00011369,2]
[352603744,1739193042228,-500.0,0.00011369,2]
[352603745,1739193042238,-500.0,0.00011369,2]
[352603746,1739193042248,-500.0,0.00011369,2]
[352603747,1739193042258,-1150.11,0.00011369,2]
[352603748,1739193042268,-666.05,0.00011369,2]
[352603749,1739193042278,-500.0,0.00011369,2]
[352603750,1739193042287,-575.58,0.00011369,2]
[352603751,1739193042297,-500.0,0.00011369,2]
[352603752,1739193042306,-1218.71,0.00011369,2]
[352603753,1739193042316,-753.11,0.00011369,2]
[352603754,1739193042325,-2548.85,0.00011369,2]
[352603755,1739193042334,-500.0,0.00011369,2]
[352603756,1739193042344,-698.98,0.00011369,2]
[352603757,1739193042353,-876.23,0.00011369,2]
[352603758,1739193042362,-500.0,0.00011369,2]
[352603759,1739193042374,-500.0,0.00011369,2]
[352603760,1739193042383,-6818.49,0.00011369,2]
[352603761,1739193042393,-1440.55,0.00011369,2]
[352603762,1739193042402,-500.0,0.00011369,2]
[352603763,1739193042412,-164.54647944,0.00011406,2]
[352603764,1739193042421,-500.0,0.00011506,2]
[352603765,1739193042431,-500.0,0.00011506,2]
[352603766,1739193042441,-568.61,0.00011506,2]
[352603767,1739193042450,-500.0,0.00011506,2]
[352603768,1739193042459,-500.0,0.00011506,2]
[352603769,1739193042468,-500.0,0.00011506,2]
[352603770,1739193042477,-500.0,0.00011506,2]
[352603771,1739193042486,-500.0,0.00011506,2]
[352603772,1739193042495,-500.0,0.00011506,2]
[352603773,1739193042505,-500.0,0.00011506,2]
[352603774,1739193042514,-500.0,0.00011506,2]
[352603775,1739193042524,-500.0,0.00011506,2]
[352603776,1739193042533,-500.0,0.00011506,2]
[352603777,1739193042542,-500.0,0.00011506,2]
[352603778,1739193042551,-500.0,0.00011506,2]
[352603779,1739193042561,-500.0,0.00011506,2]
[352603780,1739193042570,-500.0,0.00011506,2]
[352603781,1739193042579,-500.0,0.00011506,2]
[352603782,1739193042588,-500.0,0.00011506,2]
[352603783,1739193042597,-500.0,0.00011506,2]
[352603784,1739193042606,-500.0,0.00011506,2]
[352603785,1739193042617,-594.45,0.00011506,2]
[352603786,1739193042626,-500.0,0.00011506,2]
[352603787,1739193042635,-500.0,0.00011506,2]
[352603788,1739193042643,-500.0,0.00011506,2]
[352603789,1739193042652,-1386.89,0.00011506,2]
[352603790,1739193042661,-500.0,0.00011506,2]
[352603791,1739193042671,-1290.71,0.00011506,2]
[352603792,1739193042680,-2137.44,0.00011506,2]
[352603793,1739193042689,-500.0,0.00011506,2]
[352603794,1739193042698,-1023.38,0.00011506,2]
[352603795,1739193042708,-1054.8,0.00011506,2]
[352603796,1739193042718,-500.0,0.00011506,2]
[352603797,1739193042727,-500.0,0.00011506,2]
[352603798,1739193042736,-500.0,0.00011506,2]
[352603799,1739193042746,-500.0,0.00011506,2]
[352603800,1739193042756,-564.01,0.00011506,2]
[352603801,1739193042766,-500.0,0.00011506,2]
[352603802,1739193042776,-13067.2,0.00011506,2]
[352603803,1739193042790,-500.0,0.00011506,2]
[352603804,1739193042800,-1040.35,0.00011506,2]
[352603805,1739193042809,-500.0,0.00011506,2]
[352603806,1739193042818,-648.58,0.00011506,2]
[352603807,1739193042828,-5282.16,0.00011506,2]
[352603808,1739193042837,-500.0,0.00011506,2]
[352603809,1739193042848,-500.0,0.00011506,2]
[352603810,1739193042857,-500.0,0.00011506,2]